bitfinex/quotes_BTCUSD_20250604
["timestamp","ask_amount","ask_price","bid_price","bid_amount"]
[1749062220403,0.74644484,105060.0,105050.0,0.56908435]
[1749062221923,1.49288968,105060.0,105050.0,0.58362923]
[1749062223167,0.74644484,105060.0,105050.0,0.58362923]
[1749062223784,1.49288968,105060.0,105050.0,0.42914923]
[1749062224001,1.49288968,105060.0,105050.0,0.58358923]
[1749062226303,1.49288968,105060.0,105050.0,0.58359876]
[1749062227605,1.49288968,105060.0,105050.0,0.42915876]
[1749062227818,1.49288968,105060.0,105050.0,0.58359876]
[1749062228505,1.49288968,105060.0,105050.0,0.57222463]
[1749062229708,1.49288968,105060.0,105050.0,0.5836038]
[1749062229896,1.49288968,105060.0,105050.0,0.57222463]
[1749062230540,1.49288968,105060.0,105050.0,0.56312532]
[1749062230753,1.49288968,105060.0,105050.0,0.57222951]
[1749062231597,1.49288968,105060.0,105050.0,0.41778951]
[1749062231825,1.49288968,105060.0,105050.0,0.57222951]
[1749062232687,1.49288968,105060.0,105050.0,0.58361228]
[1749062232899,1.49288968,105060.0,105050.0,0.58361282]
[1749062233109,1.49288968,105060.0,105050.0,0.28783767]
[1749062233367,1.49288968,105060.0,105050.0,0.42709558]
[1749062234004,1.49288968,105060.0,105050.0,0.43599036]
[1749062234208,1.49288968,105060.0,105050.0,0.42709558]
[1749062235047,1.49288968,105060.0,105050.0,0.43598958]
[1749062235247,1.49288968,105060.0,105050.0,0.43598956]
[1749062235455,1.49288968,105060.0,105050.0,0.2726548]
[1749062235679,1.49288968,105060.0,105050.0,0.4270548]
[1749062237458,1.50225369,105060.0,105050.0,0.4270548]
[1749062237667,1.49288968,105060.0,105050.0,0.4270548]
[1749062239652,1.49288968,105060.0,105050.0,0.42704812]
[1749062241259,1.49288968,105060.0,105050.0,0.44364812]
[1749062241470,1.49288968,105060.0,105050.0,0.45904812]
[1749062242546,1.49288968,105060.0,105050.0,0.44364812]
[1749062242756,1.49288968,105060.0,105050.0,0.42704812]
[1749062243709,1.49288968,105060.0,105050.0,0.42704652]
[1749062243902,1.49288968,105060.0,105050.0,0.40656808]
[1749062244115,1.49288968,105060.0,105050.0,0.42704651]
[1749062244528,1.49288968,105060.0,105050.0,0.45994651]
[1749062245163,1.49288968,105060.0,105050.0,0.44344651]
[1749062246955,1.49288968,105060.0,105050.0,0.42704651]
[1749062247379,1.50938968,105060.0,105050.0,0.27264651]
[1749062247582,1.52598968,105060.0,105050.0,0.43593808]
[1749062247785,1.52598968,105060.0,105050.0,0.42704651]
[1749062248192,1.52598968,105060.0,105050.0,0.23288651]
[1749062248395,1.52598968,105060.0,105050.0,0.42704651]
[1749062249480,1.52598968,105060.0,105050.0,0.43593892]
[1749062249741,1.52598968,105060.0,105050.0,0.42704651]
[1749062250127,1.52598968,105060.0,105050.0,0.43593894]
[1749062250358,1.52598968,105060.0,105050.0,0.42704651]
[1749062250481,1.52598968,105060.0,105050.0,0.4359377]
[1749062250685,1.52598968,105060.0,105050.0,0.42704651]
[1749062251107,1.52598968,105060.0,105050.0,0.43593795]
[1749062251314,1.52598968,105060.0,105050.0,0.4334525]
[1749062251517,1.52598968,105060.0,105050.0,0.44482941]
[1749062252050,1.52598968,105060.0,105050.0,0.45372038]
[1749062252259,1.52598968,105060.0,105050.0,0.44482941]
[1749062253570,1.52598968,105060.0,105050.0,0.45372219]
[1749062253780,1.52598968,105060.0,105050.0,0.44482941]
[1749062253986,1.52598968,105060.0,105050.0,0.4334525]
[1749062254194,1.52598968,105060.0,105050.0,0.45372266]
[1749062254420,1.52598968,105060.0,105050.0,0.44482941]
[1749062254635,1.50938968,105060.0,105050.0,0.44482941]
[1749062254848,1.49288968,105060.0,105050.0,0.44482941]
[1749062255077,1.49288968,105060.0,105050.0,0.45372218]
[1749062255508,1.49288968,105060.0,105050.0,0.44482941]
[1749062255712,1.49288968,105060.0,105050.0,0.45372218]
[1749062255926,1.49288968,105060.0,105050.0,0.44482941]
[1749062256837,1.49288968,105060.0,105050.0,0.45372254]
[1749062257063,1.49288968,105060.0,105050.0,0.44482941]
[1749062257290,1.49288968,105060.0,105050.0,0.44482587]
[1749062257512,1.49288968,105060.0,105050.0,0.45371857]
[1749062257737,1.49288968,105060.0,105050.0,0.2879445]
[1749062257950,1.49288968,105060.0,105050.0,0.44482692]
[1749062258625,1.49288968,105060.0,105050.0,0.45371966]
[1749062258831,1.49288968,105060.0,105050.0,0.44482692]
[1749062259252,1.49288968,105060.0,105050.0,0.45371983]
[1749062259463,1.49288968,105060.0,105050.0,0.29042692]
[1749062259672,1.49288968,105060.0,105050.0,0.4334514]
[1749062259903,1.49288968,105060.0,105050.0,0.44482692]
[1749062260119,1.49288968,105060.0,105050.0,0.44478692]
[1749062261023,1.83288968,105060.0,105050.0,0.44478692]
[1749062261471,1.83288968,105060.0,105050.0,0.45367997]
[1749062261681,1.83288968,105060.0,105050.0,0.4334114]
[1749062262107,1.83288968,105060.0,105050.0,0.44230411]
[1749062262334,1.83288968,105060.0,105050.0,0.4334114]
[1749062262551,1.83288968,105060.0,105050.0,0.44230411]
[1749062262773,1.83288968,105060.0,105050.0,0.44230413]
[1749062262985,1.83288968,105060.0,105050.0,0.4334114]
[1749062263202,1.83288968,105060.0,105050.0,0.44230413]
[1749062263419,1.83288968,105060.0,105050.0,0.4334114]
[1749062263638,1.83288968,105060.0,105050.0,0.44230413]
[1749062263908,1.49288968,105060.0,105050.0,0.4334114]
[1749062264123,0.38069388,105070.0,105050.0,0.4334114]
[1749062264352,1.49288968,105060.0,105050.0,0.4334114]
[1749062265459,1.49288968,105060.0,105050.0,0.4294114]
[1749062265975,1.49288968,105060.0,105050.0,0.42941244]
[1749062266814,1.49288968,105060.0,105050.0,0.43341244]
[1749062267427,1.49288968,105060.0,105050.0,0.42941244]
[1749062267875,1.49288968,105060.0,105050.0,0.43341244]
[1749062269039,1.49288968,105060.0,105050.0,0.27905244]
[1749062269242,1.49288968,105060.0,105050.0,0.43341244]
[1749062270068,1.49288968,105060.0,105050.0,0.44230253]
[1749062270273,1.49288968,105060.0,105050.0,0.43341244]
[1749062270477,1.49288968,105060.0,105050.0,0.43341095]
[1749062271116,1.49288968,105060.0,105050.0,0.44230108]
[1749062271384,1.49288968,105060.0,105050.0,0.43341095]
[1749062273377,1.49288968,105060.0,105050.0,0.44230106]
[1749062273863,1.49288968,105060.0,105050.0,0.43341095]
[1749062274540,1.49288968,105060.0,105050.0,0.44230117]
[1749062274764,1.49288968,105060.0,105050.0,0.42431098]
[1749062275265,1.49288968,105060.0,105050.0,0.43341218]
[1749062276626,1.49288968,105060.0,105050.0,0.27905218]
[1749062276863,1.49288968,105060.0,105050.0,0.43341218]
[1749062279354,1.49288968,105060.0,105050.0,0.43341383]
[1749062282847,1.49288968,105060.0,105050.0,0.43337383]
[1749062286716,1.49288968,105060.0,105050.0,0.43337058]
[1749062288032,1.83288968,105060.0,105050.0,0.43337058]
[1749062291137,1.83288968,105060.0,105050.0,0.43337206]
[1749062292805,1.49288968,105060.0,105050.0,0.43337206]
[1749062295650,1.49288968,105060.0,105050.0,0.43337137]
[1749062298430,1.83288968,105060.0,105050.0,0.43337137]
[1749062300208,1.49288968,105060.0,105050.0,0.43337203]
[1749062303806,1.49288968,105060.0,105050.0,0.42427098]
[1749062304013,1.49288968,105060.0,105050.0,0.43337219]
[1749062304647,1.49288968,105060.0,105050.0,0.43333213]
[1749062305077,2.23933452,105060.0,105050.0,0.43333213]
[1749062305945,1.49288968,105060.0,105050.0,0.43333213]
[1749062309065,1.49288968,105060.0,105050.0,0.42423098]
[1749062309268,1.49288968,105060.0,105050.0,0.43333239]
[1749062313606,1.49288968,105060.0,105050.0,0.42423098]
[1749062313884,1.49288968,105060.0,105050.0,0.43333469]
[1749062318043,1.49288968,105060.0,105050.0,0.43333412]
[1749062322664,1.49288968,105060.0,105050.0,0.43333391]
[1749062327079,1.49288968,105060.0,105050.0,0.4333366]
[1749062328353,1.49288968,105060.0,105050.0,0.4332966]
[1749062330506,0.34979388,105070.0,105050.0,0.4648966]
[1749062330723,0.34979388,105070.0,105060.0,0.00237938]
[1749062330927,0.34979388,105070.0,105060.0,0.043885]
[1749062331127,0.34979388,105070.0,105060.0,0.04150562]
[1749062331629,0.34979388,105070.0,105060.0,0.04150106]
[1749062332019,1.84268356,105070.0,105060.0,0.04150106]
[1749062332230,1.83288968,105070.0,105060.0,0.04150106]
[1749062332506,1.83288968,105070.0,105060.0,0.04816958]
[1749062332708,1.83288968,105070.0,105060.0,0.01110106]
[1749062333549,1.84263692,105070.0,105060.0,0.01110106]
[1749062334364,1.84263692,105070.0,105060.0,0.01310106]
[1749062334820,1.84263692,105070.0,105060.0,0.01976957]
[1749062335067,1.84263692,105070.0,105060.0,0.01310106]
[1749062335954,1.84263692,105070.0,105060.0,0.0130973]
[1749062336162,1.84263692,105070.0,105060.0,0.01976591]
[1749062336386,1.84263692,105070.0,105060.0,0.0130973]
[1749062337498,1.84263692,105070.0,105060.0,0.01976618]
[1749062337707,1.84263692,105070.0,105060.0,0.0130973]
[1749062338355,1.84263692,105070.0,105060.0,0.0527773]
[1749062339470,1.84263692,105070.0,105060.0,0.05944618]
[1749062339689,1.84263692,105070.0,105060.0,0.0527773]
[1749062340355,1.84263692,105070.0,105060.0,0.06944617]
[1749062340562,1.84263692,105070.0,105060.0,0.0627764]
[1749062341843,1.84263692,105070.0,105060.0,0.06944635]
[1749062342055,1.84263692,105070.0,105060.0,0.0627764]
[1749062342493,1.84263692,105070.0,105060.0,0.06944637]
[1749062342720,1.84263692,105070.0,105060.0,0.06944657]
[1749062342964,1.84263692,105070.0,105060.0,0.0627764]
[1749062343178,1.08644484,105070.0,105060.0,0.1980801]
[1749062343410,1.08644484,105070.0,105060.0,0.1957003]
[1749062343628,1.08644484,105070.0,105060.0,0.19570003]
[1749062343847,1.08644484,105070.0,105060.0,0.1890307]
[1749062344061,1.08644484,105070.0,105060.0,0.19570021]
[1749062344280,1.08644484,105070.0,105060.0,0.19570033]
[1749062344731,1.08644484,105070.0,105060.0,0.1890307]
[1749062345386,1.08644484,105070.0,105060.0,0.3432307]
[1749062345876,1.08644484,105070.0,105060.0,0.34990033]
[1749062346092,1.08644484,105070.0,105060.0,0.3432307]
[1749062346294,1.08644484,105070.0,105060.0,0.34990033]
[1749062346521,1.08644484,105070.0,105060.0,0.3432307]
[1749062346716,1.08644484,105070.0,105060.0,0.34990004]
[1749062346979,1.08644484,105070.0,105060.0,0.3432307]
[1749062347895,1.83288968,105070.0,105060.0,0.34322625]
[1749062349423,1.83288968,105070.0,105060.0,0.31282625]
[1749062350050,1.83288968,105070.0,105060.0,0.34512625]
[1749062352291,1.83288968,105070.0,105060.0,0.34512512]
[1749062353958,1.08644484,105070.0,105060.0,0.34512512]
[1749062356807,1.08644484,105070.0,105060.0,0.34512634]
[1749062357152,1.83288968,105070.0,105060.0,0.15124634]
[1749062357380,1.86368968,105070.0,105060.0,0.02309204]
[1749062357586,1.86368968,105070.0,105060.0,0.21689204]
[1749062359679,1.86368968,105070.0,105060.0,0.2168964]
[1749062361723,1.86368968,105070.0,105060.0,0.2078]
[1749062362565,1.86368968,105070.0,105060.0,0.014]
[1749062362781,1.86368968,105070.0,105060.0,0.2078]
[1749062366741,1.86368968,105070.0,105060.0,0.41316]
[1749062373072,1.86368968,105070.0,105060.0,0.259]
[1749062373274,1.86368968,105070.0,105060.0,0.41316]
[1749062378224,1.86368968,105070.0,105060.0,0.41312]
[1749062383016,1.86368968,105070.0,105060.0,0.21936]
[1749062383153,1.86368968,105070.0,105060.0,0.41312]
[1749062390602,1.86368968,105070.0,105060.0,0.25896]
[1749062390603,2.61013452,105070.0,105060.0,0.25896]
[1749062390805,2.61013452,105070.0,105060.0,0.41308]
[1749062391216,2.61013452,105070.0,105060.0,0.42218053]
[1749062392221,2.61013452,105070.0,105060.0,0.42885193]
[1749062392427,2.61013452,105070.0,105060.0,0.4288548]
[1749062392628,2.61013452,105070.0,105060.0,0.42218053]
[1749062393013,2.61013452,105070.0,105060.0,0.4197543]
[1749062393227,2.61013452,105070.0,105060.0,0.41308]
[1749062393228,1.86368968,105070.0,105060.0,0.41308]
[1749062395529,0.3708,105070.0,105060.0,0.41308]
[1749062395742,1.84798968,105070.0,105060.0,0.41308]
[1749062395959,1.83288968,105070.0,105060.0,0.41308]
[1749062397735,1.83288968,105070.0,105060.0,0.21936]
[1749062398034,1.83288968,105070.0,105060.0,0.41308]
[1749062410675,0.34,105070.0,105060.0,0.41308]
[1749062410880,1.83288968,105070.0,105060.0,0.41308]
[1749062411289,1.83288968,105070.0,105060.0,0.41304]
[1749062413927,1.84878968,105070.0,105060.0,0.41304]
[1749062415894,1.83288968,105070.0,105060.0,0.41304]
[1749062417097,1.86438968,105070.0,105060.0,0.41304]
[1749062417707,1.86438968,105070.0,105060.0,0.413]
[1749062418950,2.61083452,105070.0,105060.0,0.25892]
[1749062419402,2.61083452,105070.0,105060.0,0.413]
[1749062419605,1.86438968,105070.0,105060.0,0.413]
[1749062423313,2.61083452,105070.0,105060.0,0.413]
[1749062423541,1.86438968,105070.0,105060.0,0.413]
[1749062424285,2.61083452,105070.0,105060.0,0.413]
[1749062425334,1.86438968,105070.0,105060.0,0.413]
[1749062427410,2.61083452,105070.0,105060.0,0.413]
[1749062427852,1.86438968,105070.0,105060.0,0.413]
[1749062428273,2.61083452,105070.0,105060.0,0.413]
[1749062430489,2.61083452,105070.0,105060.0,0.21936]
[1749062430701,2.61083452,105070.0,105060.0,0.413]
[1749062431953,0.3715,105070.0,105060.0,0.413]
[1749062432172,1.86438968,105070.0,105060.0,0.413]
[1749062434198,2.61083452,105070.0,105060.0,0.413]
[1749062436787,2.61083452,105070.0,105060.0,0.21936]
[1749062437015,2.61083452,105070.0,105060.0,0.413]
[1749062438847,2.61083452,105070.0,105060.0,0.42212887]
[1749062439064,2.61083452,105070.0,105060.0,0.413]
[1749062439250,2.61083452,105070.0,105060.0,0.4221287]
[1749062439831,1.86438968,105070.0,105060.0,0.4221287]
[1749062441464,1.86438968,105070.0,105060.0,0.2284887]
[1749062441703,1.86438968,105070.0,105060.0,0.4220887]
[1749062442409,1.86438968,105070.0,105060.0,0.41296]
[1749062443483,1.86438968,105070.0,105060.0,0.42208887]
[1749062447830,1.86438968,105070.0,105060.0,0.41296]
[1749062448033,1.84878968,105070.0,105060.0,0.41296]
[1749062448724,1.84878968,105070.0,105060.0,0.4220887]
[1749062453173,1.84878968,105070.0,105060.0,0.41296]
[1749062454008,1.83288968,105070.0,105060.0,0.41296]
[1749062454222,1.83288968,105070.0,105060.0,0.42208887]
[1749062457945,1.83288968,105070.0,105060.0,0.41296]
[1749062458151,1.83288968,105070.0,105060.0,0.42208886]
[1749062458573,1.83288968,105070.0,105060.0,0.41296]
[1749062459417,1.83288968,105070.0,105060.0,0.42208869]
[1749062461862,1.83288968,105070.0,105060.0,0.26804869]
[1749062462099,1.83288968,105070.0,105060.0,0.42208869]
[1749062463070,1.83288968,105070.0,105060.0,0.42208886]
[1749062464030,1.83288968,105070.0,105060.0,0.41296]
[1749062464949,1.83288968,105070.0,105060.0,0.42208886]
[1749062469094,1.83288968,105070.0,105060.0,0.41296]
[1749062469958,2.57933452,105070.0,105060.0,0.42208886]
[1749062470378,1.83288968,105070.0,105060.0,0.42208886]
[1749062470591,1.83288968,105070.0,105060.0,0.22848886]
[1749062470592,2.57933452,105070.0,105060.0,0.22848886]
[1749062470803,2.57933452,105070.0,105060.0,0.42204886]
[1749062471226,2.59563452,105070.0,105060.0,0.42204886]
[1749062472687,2.59563452,105070.0,105060.0,0.41292]
[1749062472874,2.61183452,105070.0,105060.0,0.42204887]
[1749062474156,2.61183452,105070.0,105060.0,0.41292]
[1749062474374,2.57933452,105070.0,105060.0,0.41292]
[1749062475012,1.83288968,105070.0,105060.0,0.41292]
[1749062476682,2.57933452,105070.0,105060.0,0.41292]
[1749062483848,1.83288968,105070.0,105060.0,0.41292]
[1749062484061,0.34,105070.0,105060.0,0.41292]
[1749062484270,1.83288968,105070.0,105060.0,0.41292]
[1749062485211,2.57933452,105070.0,105060.0,0.41292]
[1749062485554,2.61053452,105070.0,105060.0,0.41292]
[1749062485760,2.57933452,105070.0,105060.0,0.41292]
[1749062494521,0.34,105060.0,105040.0,0.0325]
[1749062494746,0.34,105040.0,105030.0,0.0319]
[1749062494949,0.34,105040.0,105020.0,0.0319]
[1749062494950,4.84986904,105040.0,105020.0,0.0319]
[1749062495152,2.61053452,105040.0,105030.0,0.03999902]
[1749062495363,2.67696606,105040.0,105030.0,0.154]
[1749062495590,2.67696606,105040.0,105010.0,0.11704796]
[1749062496057,2.67696606,105040.0,105030.0,0.002]
[1749062496253,2.67696606,105040.0,105010.0,0.11704796]
[1749062496435,2.57933452,105020.0,105010.0,0.11704796]
[1749062496653,2.57933452,105020.0,105010.0,0.27104796]
[1749062497061,2.57933452,105020.0,105010.0,0.27404796]
[1749062497267,2.57933452,105020.0,105010.0,0.27104796]
[1749062497760,2.57933452,105020.0,105010.0,0.27404796]
[1749062497943,2.57933452,105020.0,105010.0,0.198107]
[1749062498143,2.57933452,105020.0,105010.0,0.201107]
[1749062499643,0.34,105020.0,105010.0,0.201107]
[1749062499858,2.57933452,105020.0,105010.0,0.201107]
[1749062500724,2.58885848,105020.0,105010.0,0.201107]
[1749062502632,2.24885848,105020.0,105010.0,0.201107]
[1749062504096,2.24885848,105020.0,105010.0,0.446107]
[1749062506500,2.24885848,105020.0,105010.0,0.292107]
[1749062506710,2.24885848,105020.0,105010.0,0.446147]
[1749062509675,2.57185848,105020.0,105010.0,0.446147]
[1749062511087,1.84241364,105020.0,105010.0,0.446147]
[1749062511311,0.74644484,105020.0,105010.0,0.33074215]
[1749062511541,1.08644484,105020.0,105010.0,0.52430215]
[1749062511967,1.08644484,105020.0,105010.0,0.55600215]
[1749062512607,1.83288968,105020.0,105010.0,0.55600215]
[1749062513282,0.74718382,105020.0,105010.0,0.55600215]
[1749062513502,0.74718382,105020.0,105010.0,0.56513239]
[1749062513503,0.72435821,105020.0,105010.0,0.56513239]
[1749062513728,0.72435821,105020.0,105010.0,0.58028481]
[1749062514171,0.72435821,105020.0,105010.0,0.56513239]
[1749062515262,0.72435821,105020.0,105010.0,0.5650936]
[1749062515734,0.72435821,105020.0,105010.0,0.58024602]
[1749062516386,0.72435821,105020.0,105010.0,0.38668602]
[1749062516648,0.72435821,105020.0,105010.0,0.58020602]
[1749062520015,0.72435821,105020.0,105010.0,0.58022446]
[1749062521311,0.72435821,105020.0,105010.0,0.58022579]
[1749062526637,0.72435821,105020.0,105010.0,0.38670579]
[1749062526860,0.72435821,105020.0,105010.0,0.58022579]
[1749062531107,0.72435821,105020.0,105010.0,0.56507337]
[1749062533274,0.74719734,105020.0,105010.0,0.56507337]
[1749062533935,0.74719734,105020.0,105010.0,0.37155337]
[1749062534143,0.74719734,105020.0,105010.0,0.56507337]
[1749062534807,1.49439468,105020.0,105010.0,0.56507337]
[1749062534961,1.49439468,105020.0,105010.0,0.41107337]
[1749062535140,1.49439468,105020.0,105010.0,0.56507337]
[1749062535360,1.49439468,105020.0,105010.0,0.37155337]
[1749062535539,1.49439468,105020.0,105010.0,0.54858764]
[1749062535840,1.49439468,105020.0,105010.0,0.38004679]
[1749062536029,1.52529468,105020.0,105010.0,0.53404679]
[1749062536447,1.50959468,105020.0,105010.0,0.53404679]
[1749062536697,1.50959468,105020.0,105010.0,0.5097213]
[1749062538077,1.49439468,105020.0,105010.0,0.5097213]
[1749062538296,0.34,105020.0,105010.0,0.5097213]
[1749062538516,1.83439468,105020.0,105010.0,0.5097213]
[1749062538736,1.83439468,105020.0,105010.0,0.5257213]
[1749062539990,1.83439468,105020.0,105010.0,0.5097213]
[1749062546068,1.83439468,105020.0,105010.0,0.5418213]
[1749062546457,1.83439468,105020.0,105010.0,0.55636215]
[1749062551544,0.34,105020.0,105010.0,0.55636215]
[1749062551665,1.08719734,105020.0,105010.0,0.55636215]
[1749062552693,0.03418904,105040.0,105020.0,0.61454085]
[1749062552900,0.03418904,105040.0,105030.0,0.29625515]
[1749062553344,0.78138638,105040.0,105030.0,0.29625515]
[1749062553568,1.12138638,105040.0,105030.0,0.29625515]
[1749062553881,0.78138638,105040.0,105030.0,0.29625515]
[1749062554596,0.78138638,105040.0,105030.0,0.29825515]
[1749062554798,0.78138638,105040.0,105030.0,0.30125515]
[1749062555007,1.12138638,105040.0,105030.0,0.30125515]
[1749062555208,0.37418904,105040.0,105030.0,0.30125515]
[1749062555447,1.12112919,105040.0,105030.0,0.30125515]
[1749062555664,1.12112919,105040.0,105030.0,0.2943343]
[1749062558074,0.78112919,105040.0,105030.0,0.2943343]
[1749062561500,0.03418904,105040.0,105030.0,0.30345467]
[1749062561717,1.12112919,105040.0,105030.0,0.33525467]
[1749062562149,0.03418904,105040.0,105030.0,0.33525467]
[1749062562365,0.78112919,105040.0,105030.0,0.33525467]
[1749062564780,0.78112919,105040.0,105030.0,0.34979552]
[1749062565036,0.03418904,105040.0,105030.0,0.34979552]
[1749062565243,0.78112919,105040.0,105030.0,0.34979552]
[1749062565459,0.78112919,105040.0,105030.0,0.36499615]
[1749062567579,0.78112919,105040.0,105030.0,0.17151615]
[1749062567787,0.78112919,105040.0,105030.0,0.36733601]
[1749062567999,0.78112919,105040.0,105030.0,0.36495615]
[1749062569455,0.03418904,105040.0,105030.0,0.36495615]
[1749062569671,0.78112919,105040.0,105030.0,0.36495615]
[1749062574027,0.78112919,105040.0,105030.0,0.35583578]
[1749062574244,0.78112919,105040.0,105030.0,0.36493274]
[1749062578930,0.78112919,105040.0,105030.0,0.41641274]
[1749062579160,0.78112919,105040.0,105030.0,0.57033274]
[1749062581472,0.78112919,105040.0,105030.0,0.55513211]
[1749062584590,0.03418904,105040.0,105030.0,0.60513211]
[1749062584817,0.37418904,105040.0,105030.0,0.60513211]
[1749062585038,0.37418904,105040.0,105030.0,0.63367911]
[1749062585936,0.03418904,105040.0,105030.0,1.72391926]
[1749062586184,0.03418904,105040.0,105030.0,0.97697911]
[1749062586438,0.34,105050.0,105040.0,0.65]
[1749062586655,0.34,105050.0,105040.0,0.78699935]
[1749062587084,1.08694015,105050.0,105040.0,0.78699935]
[1749062587835,1.08694015,105050.0,105040.0,0.78902079]
[1749062588993,0.74694015,105050.0,105040.0,0.78902079]
[1749062593499,0.74694015,105050.0,105040.0,0.70702079]
[1749062593746,0.74694015,105050.0,105040.0,0.90038079]
[1749062593747,0.77864015,105050.0,105040.0,0.90038079]
[1749062593975,0.77864015,105050.0,105040.0,0.91491866]
[1749062600811,0.76204015,105050.0,105040.0,0.91491866]
[1749062602284,0.0151,105050.0,105040.0,0.91491866]
[1749062602504,0.74694015,105050.0,105040.0,0.91491866]
[1749062602722,0.77844015,105060.0,105040.0,0.91491866]
[1749062602934,0.74694015,105050.0,105040.0,0.81906436]
[1749062603150,0.74694015,105050.0,105040.0,0.91491866]
[1749062603572,0.74694015,105050.0,105040.0,0.91291866]
[1749062603798,0.74694015,105050.0,105040.0,0.91392032]
[1749062604908,0.77844015,105060.0,105040.0,0.92992032]
[1749062605132,0.74694015,105060.0,105050.0,0.09823381]
[1749062605346,0.74694015,105060.0,105050.0,0.10735089]
[1749062606520,0.74694015,105060.0,105050.0,0.12189174]
[1749062606759,0.74694015,105060.0,105050.0,0.15439174]
[1749062607888,0.74794015,105060.0,105050.0,0.15439174]
[1749062608069,0.74794015,105060.0,105050.0,0.15201223]
[1749062608794,0.74794015,105060.0,105050.0,0.11951223]
[1749062609247,0.74794015,105060.0,105050.0,0.15429169]
[1749062609495,0.74794015,105060.0,105050.0,0.15191223]
[1749062610357,0.74794015,105060.0,105050.0,0.15190941]
[1749062611637,1.5253803,105060.0,105050.0,0.11950941]
[1749062611844,1.8653803,105060.0,105050.0,0.14444856]
[1749062612069,1.8653803,105060.0,105050.0,0.29832856]
[1749062612519,1.89188213,105060.0,105050.0,0.29832856]
[1749062613588,0.39800183,105060.0,105050.0,0.29832856]
[1749062613803,1.89188213,105060.0,105050.0,0.00911426]
[1749062614022,1.89188213,105060.0,105050.0,0.04859426]
[1749062614239,1.89188213,105060.0,105050.0,0.20247426]
[1749062614423,1.89188213,105060.0,105050.0,0.20247499]
[1749062619102,1.89188213,105060.0,105050.0,0.40783499]
[1749062619333,1.89188213,105060.0,105050.0,0.40783093]
[1749062620429,1.8653803,105060.0,105050.0,0.40783093]
[1749062622767,1.8653803,105060.0,105050.0,0.39872]
[1749062623387,1.8653803,105060.0,105050.0,0.40782923]
[1749062627410,1.8653803,105060.0,105050.0,0.25394923]
[1749062627650,1.8653803,105060.0,105050.0,0.39872]
[1749062627882,1.8653803,105060.0,105050.0,0.20536]
[1749062628099,1.8653803,105060.0,105050.0,0.39872]
[1749062629251,1.8653803,105060.0,105050.0,0.20536]
[1749062629489,1.8653803,105060.0,105050.0,0.39872]
[1749062632540,1.08794015,105060.0,105050.0,0.50367908]
[1749062632792,0.74794015,105060.0,105050.0,0.53577908]
[1749062633012,0.74794015,105060.0,105050.0,0.53577831]
[1749062633227,1.08794015,105060.0,105050.0,0.51937831]
[1749062633972,1.08794015,105060.0,105050.0,0.53587831]
[1749062635892,1.08794015,105060.0,105050.0,0.83587831]
[1749062636535,1.08794015,105060.0,105050.0,0.80367831]
[1749062636741,1.8348803,105060.0,105050.0,0.80367831]
[1749062642370,1.08794015,105060.0,105050.0,0.80367831]
[1749062643251,1.08794015,105060.0,105050.0,0.82017831]
[1749062643454,1.08794015,105060.0,105050.0,0.83677831]
[1749062644509,0.341,105060.0,105050.0,0.83677831]
[1749062644762,1.08794015,105060.0,105050.0,0.83677831]
[1749062647880,0.341,105060.0,105050.0,0.83677831]
[1749062648306,1.08794015,105060.0,105050.0,0.83677831]
[1749062650969,1.08794015,105060.0,105050.0,0.80367831]
[1749062651396,1.8348803,105060.0,105050.0,0.80367831]
[1749062651607,1.8501803,105060.0,105050.0,0.34979831]
[1749062651828,1.8501803,105060.0,105050.0,0.50371831]
[1749062651829,1.8661803,105060.0,105050.0,0.50371831]
[1749062652268,1.8661803,105060.0,105050.0,0.40790401]
[1749062653341,1.8661803,105060.0,105050.0,0.40794401]
[1749062656225,0.3723,105060.0,105050.0,0.40794401]
[1749062656451,1.8661803,105060.0,105050.0,0.40794761]
[1749062659874,1.8661803,105060.0,105050.0,0.40802761]
[1749062671347,0.3723,105060.0,105050.0,0.40802761]
[1749062671585,1.8661803,105060.0,105050.0,0.40802761]
[1749062676199,1.8661803,105060.0,105050.0,0.40798761]
[1749062677469,1.8501803,105060.0,105050.0,0.40798761]
[1749062677676,1.8658803,105060.0,105050.0,0.40798761]
[1749062683427,2.6128458,105060.0,105050.0,0.40798761]
[1749062684106,2.6128458,105060.0,105050.0,0.40800692]
[1749062687685,2.5971458,105060.0,105050.0,0.40800692]
[1749062694880,2.5818458,105060.0,105050.0,0.40800692]
[1749062695084,2.5818458,105060.0,105050.0,0.40792095]
[1749062695745,2.5818458,105060.0,105050.0,0.25388095]
[1749062695963,2.5818458,105060.0,105050.0,0.40780095]
[1749062695964,2.6135458,105060.0,105050.0,0.40780095]
[1749062696174,2.6135458,105060.0,105050.0,0.25388095]
[1749062696393,2.6135458,105060.0,105050.0,0.40780095]
[1749062696832,2.6135458,105060.0,105050.0,0.39876]
[1749062702061,2.5818458,105060.0,105050.0,0.43873177]
[1749062703161,1.8348972,105060.0,105050.0,0.53458607]
[1749062703829,2.5818458,105060.0,105050.0,0.53458607]
[1749062704263,1.8348972,105060.0,105050.0,0.53458607]
[1749062707111,0.341,105060.0,105050.0,0.53458607]
[1749062707559,1.8348972,105060.0,105050.0,0.53458607]
[1749062708174,2.5818458,105060.0,105050.0,0.53458607]
[1749062708385,2.5818458,105060.0,105050.0,0.53470607]
[1749062708822,1.8348972,105060.0,105050.0,0.53470607]
[1749062709245,2.5818458,105060.0,105050.0,0.53470607]
[1749062709452,2.5818458,105060.0,105050.0,0.31018607]
[1749062709675,2.6139458,105060.0,105050.0,0.25381177]
[1749062709895,2.6139458,105060.0,105050.0,0.39888]
[1749062710115,2.6139458,105060.0,105050.0,0.20536]
[1749062710339,4.8226916,105060.0,105040.0,4.809e-05]
[1749062710553,2.5808458,105050.0,105030.0,0.00893062]
[1749062710762,0.34,105030.0,105020.0,0.00893047]
[1749062710990,1.8338972,105030.0,105020.0,0.10478477]
[1749062711200,1.8338972,105030.0,105020.0,0.10526358]
[1749062711414,1.83476286,105030.0,105020.0,0.10526358]
[1749062711633,1.83476286,105030.0,105020.0,0.25930358]
[1749062712050,1.83276286,105030.0,105020.0,0.25930358]
[1749062712283,0.0321,105040.0,105020.0,0.25930358]
[1749062712485,1.49476286,105030.0,105020.0,0.29130358]
[1749062712704,1.46776286,105030.0,105020.0,0.29130358]
[1749062713449,1.46776286,105030.0,105020.0,0.29230358]
[1749062713674,1.47746852,105030.0,105020.0,0.29230358]
[1749062714086,1.81746852,105030.0,105020.0,0.53715284]
[1749062714313,1.81746852,105030.0,105020.0,0.53915284]
[1749062715696,0.34970566,105030.0,105020.0,0.53915284]
[1749062715938,1.84446852,105030.0,105020.0,0.53915284]
[1749062718147,1.84446852,105030.0,105020.0,0.35311284]
[1749062718375,1.84446852,105030.0,105020.0,0.50735284]
[1749062725240,1.84446852,105030.0,105020.0,0.53875284]
[1749062727450,1.84446852,105030.0,105020.0,0.50735284]
[1749062729681,1.84446852,105030.0,105020.0,0.50734863]
[1749062730309,0.34970566,105030.0,105020.0,0.50734863]